bitfinex-derivatives/quotes_ETHF0:USTF0_20250627
["timestamp","ask_amount","ask_price","bid_price","bid_amount"]
[1751045919176,0.85026047,2414.4,2414.3,35.5878]
[1751045919575,0.02218047,2414.4,2414.3,36.41591]
[1751045920281,0.02218047,2414.4,2414.3,35.5878]
[1751045920579,0.02218047,2414.4,2414.3,36.41591]
[1751045921270,0.85026047,2414.4,2414.3,35.5878]
[1751045921470,0.02218047,2414.4,2414.3,36.41591]
[1751045921873,0.02218047,2414.4,2414.3,37.81891]
[1751045922175,0.02218047,2414.4,2414.3,36.41591]
[1751045922377,0.02218047,2414.4,2414.1,6.745]
[1751045922683,0.82815,2414.2,2414.1,6.745]
[1751045922873,0.82815,2414.2,2414.1,32.384]
[1751045923274,2.28345,2414.2,2414.1,32.384]
[1751045923881,2.34110199,2414.2,2414.1,32.384]
[1751045924384,2.35900113,2414.2,2414.1,32.384]
[1751045924880,2.35902113,2414.2,2414.1,25.638]
[1751045925278,1.53085113,2414.2,2414.1,26.46618]
[1751045925486,2.35900113,2414.2,2414.1,26.46618]
[1751045925688,0.07555113,2414.2,2414.1,26.46618]
[1751045926279,5.06555113,2414.2,2414.1,26.46618]
[1751045927988,5.08341011,2414.2,2414.1,26.46618]
[1751045928287,5.91156011,2414.2,2414.1,25.638]
[1751045928683,5.08341011,2414.2,2414.1,26.46618]
[1751045929286,5.08341011,2414.2,2414.1,33.21418]
[1751045930292,5.08341011,2414.2,2414.1,32.386]
[1751045930485,5.08341011,2414.2,2414.1,0.82818]
[1751045930692,5.91156011,2414.2,2414.1,32.385]
[1751045930983,6.55751011,2414.2,2414.1,33.21318]
[1751045931183,7.38566011,2414.2,2414.1,32.385]
[1751045931385,0.82819,2414.1,2414.0,6.746]
[1751045931578,3.71649,2414.1,2414.0,6.746]
[1751045931988,3.80990011,2414.1,2414.0,32.386]
[1751045932782,3.80990011,2414.1,2413.9,4.03605]
[1751045932783,0.82822,2414.0,2413.9,3.2078]
[1751045932987,0.82845,2413.4,2413.1,4.03631]
[1751045933198,3.2078,2413.7,2413.1,10.78231]
[1751045933494,0.82844,2413.4,2413.2,32.385]
[1751045933697,0.82844,2413.4,2413.2,33.21347]
[1751045933887,0.82846,2413.3,2413.2,33.21347]
[1751045934193,0.82846,2413.3,2413.2,32.385]
[1751045934194,0.09341011,2413.3,2413.2,32.385]
[1751045934397,0.09341011,2413.3,2413.2,33.21349]
[1751045934587,0.09341011,2413.3,2413.2,33.21449]
[1751045935191,0.7262,2413.5,2413.2,33.7209]
[1751045935390,1.5546,2413.5,2413.3,0.82846]
[1751045935591,0.01787045,2413.4,2413.2,0.82846]
[1751045935785,0.01787045,2413.4,2413.3,33.21646]
[1751045935989,0.01787045,2413.4,2411.1,69.28917599]
[1751045935990,15.59462017,2413.4,2412.3,3.2078]
[1751045936186,3.2078,2412.8,2412.2,0.82882]
[1751045936382,2.862,2412.7,2412.4,3.2078]
[1751045936588,1.3935,2412.7,2412.4,6.747]
[1751045936786,0.82878,2412.4,2412.1,3.2078]
[1751045936986,0.82892,2412.0,2411.6,50.9188]
[1751045937192,0.82888,2412.1,2411.7,32.528]
[1751045937393,0.03532075,2411.9,2411.7,33.35699]
[1751045938095,0.03532075,2411.9,2411.7,0.829]
[1751045938291,7.0922,2412.3,2411.8,0.82897]
[1751045938496,7.0922,2412.3,2411.6,5.3392]
[1751045938795,0.82892,2412.0,2411.6,3.9022]
[1751045939093,7.0922,2412.3,2411.7,6.749]
[1751045939398,0.82895,2411.9,2411.8,6.749]
[1751045939593,0.829,2411.8,2411.7,25.81]
[1751045939789,0.82903,2411.7,2411.6,25.813]
[1751045939987,1.3611,2411.8,2411.6,32.562]
[1751045940187,0.82895,2411.9,2411.6,33.39104]
[1751045940387,0.82895,2411.9,2411.6,32.562]
[1751045940590,5.7211,2412.0,2411.5,3.2078]
[1751045940891,3.2078,2412.1,2411.6,39.92494972]
[1751045941099,4.99,2411.8,2411.7,0.82898]
[1751045941296,4.99,2411.8,2411.7,32.574]
[1751045941494,5.00791454,2411.8,2411.7,33.40301]
[1751045941703,5.00791454,2411.8,2411.7,32.574]
[1751045942189,5.00791454,2411.8,2411.5,3.9238]
[1751045942389,0.84692454,2411.7,2411.6,32.565]
[1751045942688,0.01791454,2411.7,2411.6,32.565]
[1751045943089,0.84692454,2411.7,2411.6,32.565]
[1751045944099,0.84692454,2411.7,2411.5,3.2078]
[1751045944396,4.99,2411.8,2411.6,32.58008546]
[1751045944602,4.99,2411.8,2411.7,33.42401]
[1751045944898,5.00791186,2411.8,2411.7,33.42401]
[1751045945096,5.00791186,2411.8,2411.7,38.42401]
[1751045945488,3.81936186,2411.8,2411.7,39.12261]
[1751045945695,3.2078,2412.7,2412.6,0.8287]
[1751045945999,3.2078,2412.7,2412.6,6.751]
[1751045946189,3.2078,2413.0,2412.7,0.82864]
[1751045946498,3.2078,2413.0,2412.7,0.81071568]
[1751045946802,3.2078,2413.0,2412.8,25.861]
[1751045947099,50.9789078,2413.9,2412.8,25.861]
[1751045947100,5.37555,2413.4,2413.1,0.82851]
[1751045947292,2.09744567,2413.3,2413.2,6.752]
[1751045947495,3.43674567,2413.3,2413.2,6.752]
[1751045948205,3.44814567,2413.3,2413.2,6.752]
[1751045948902,1.28038567,2413.3,2413.2,6.752]
[1751045949301,2.10884567,2413.3,2413.2,6.752]
[1751045949695,1.28038567,2413.3,2413.2,6.752]
[1751045949995,0.85279288,2413.3,2413.2,17.32874972]
[1751045950195,0.85279288,2413.3,2413.2,9.9598]
[1751045950398,2.1212714,2413.3,2413.2,9.9598]
[1751045950793,1.2928114,2413.3,2413.2,9.9598]
[1751045951099,0.02433288,2413.3,2413.2,10.78829]
[1751045951406,0.02433288,2413.3,2413.2,33.45149]
[1751045951700,0.02433288,2413.3,2413.2,32.623]
[1751045952602,0.02433288,2413.3,2413.2,33.45149]
[1751045953099,0.02433288,2413.3,2413.2,32.623]
[1751045953299,0.85279288,2413.3,2413.2,32.623]
[1751045954498,0.02433288,2413.3,2413.2,33.45149]
[1751045954999,0.04226819,2413.3,2413.2,33.45149]
[1751045955899,0.04226819,2413.3,2413.2,36.65929]
[1751045956099,0.04869515,2413.3,2413.2,36.65929]
[1751045956299,0.04869515,2413.3,2413.2,38.09749]
[1751045956505,4.9914,2413.4,2413.3,0.76193789]
[1751045956704,4.9914,2413.4,2413.3,28.02913789]
[1751045957299,4.9914,2413.4,2413.3,35.39808761]
[1751045957597,0.82836,2413.6,2413.5,0.82839]
[1751045957800,9.02754,2413.7,2413.5,26.64939]
[1751045958105,9.02754,2413.7,2413.6,6.876]
[1751045958403,0.82839,2413.5,2413.4,0.82842]
[1751045958590,0.82839,2413.5,2413.4,33.52042]
[1751045958794,0.82842,2413.4,2413.3,1.4382]
[1751045958996,0.84624696,2413.4,2413.3,32.684]
[1751045959794,5.83764696,2413.4,2413.3,32.684]
[1751045959994,5.81982,2413.4,2413.3,32.684]
[1751045960200,0.82849,2413.2,2413.1,47.733]
[1751045960400,0.82849,2413.2,2413.1,80.417]
[1751045960697,0.87028913,2413.2,2413.1,80.417]
[1751045961097,0.87028913,2413.2,2413.1,54.609]
[1751045961299,0.87028913,2413.2,2413.1,80.41]
[1751045961599,0.87028913,2413.2,2413.1,47.733]
[1751045961792,0.87028913,2413.2,2413.1,80.405]
[1751045963101,0.87028913,2413.2,2413.1,81.23352]
[1751045963102,0.04179913,2413.2,2413.1,81.23352]
[1751045963405,0.87028913,2413.2,2413.1,80.405]
[1751045963897,0.87028913,2413.2,2413.1,47.733]
[1751045964298,2.32548913,2413.2,2413.1,80.388]
[1751045964500,7.31688913,2413.2,2413.1,80.397]
[1751045967107,7.3348275,2413.2,2413.1,80.397]
[1751045968712,7.34790406,2413.2,2413.1,80.397]
[1751045969008,7.34790406,2413.2,2413.1,80.381]
[1751045969209,7.36098062,2413.2,2413.1,54.608]
[1751045969511,7.36098062,2413.2,2413.1,80.363]
[1751045969711,7.36098062,2413.2,2413.1,47.733]
[1751045969913,21.00999662,2413.2,2413.1,25.751]
[1751045970110,8.6410469,2413.2,2413.1,25.751]
[1751045970412,5.07729062,2413.2,2413.1,33.94846972]
[1751045970608,0.08589062,2413.2,2413.1,26.57952]
[1751045970809,0.82854,2413.1,2412.5,5.2796]
[1751045971109,4.03627,2413.3,2413.1,0.82851]
[1751045971411,9.02766,2413.3,2413.2,32.702]
[1751045971613,10.31081818,2413.3,2413.2,32.702]
[1751045972109,9.48235818,2413.3,2412.9,0.82859]
[1751045972312,1.28315818,2413.2,2413.0,32.695]
[1751045972509,0.82849,2413.2,2413.1,32.695]
[1751045973103,2.11191567,2413.2,2413.1,32.695]
[1751045974116,0.82859,2412.9,2412.8,0.82862]
[1751045974309,0.82859,2413.0,2412.8,33.50762]
[1751045974505,0.7083,2412.9,2412.8,33.50762]
[1751045974814,1.53689,2412.9,2412.8,33.50762]
[1751045975205,0.7083,2412.9,2412.8,33.50762]
[1751045975812,1.53689,2412.9,2412.8,33.50762]
[1751045976208,1.53689,2412.9,2412.8,32.679]
[1751045976512,1.53689,2412.9,2412.8,33.50563]
[1751045976709,0.7083,2412.9,2412.8,33.50563]
[1751045977311,0.82866,2412.7,2412.5,0.82872]
[1751045977614,1.53689,2412.9,2412.8,6.876]
[1751045977815,0.82866,2412.8,2412.6,0.82869]
[1751045978111,0.82866,2412.7,2412.6,0.82869]
[1751045978311,0.82865,2412.8,2412.6,0.82869]
[1751045978515,0.82863,2412.8,2412.7,32.605]
[1751045978904,0.82863,2412.8,2412.6,0.82868]
[1751045979114,0.82863,2412.8,2412.7,32.603]
[1751045979313,2.11598594,2412.8,2412.7,32.603]
[1751045979517,2.11598594,2412.8,2412.7,33.43166]
[1751045979814,0.82867,2412.7,2412.6,0.82867]
[1751045980113,0.82866,2412.7,2412.6,33.42368]
[1751045980511,0.82866,2412.7,2412.6,32.595]
[1751045981210,0.82866,2412.7,2412.6,33.4237]
[1751045981413,5.82005,2412.8,2412.7,0.82866]
[1751045981613,7.10823986,2412.8,2412.7,0.82866]
[1751045981817,6.27958986,2412.8,2412.7,0.82866]
[1751045982015,4.9914,2412.8,2412.7,0.82866]
[1751045982514,4.9914,2412.8,2412.7,33.41666]
[1751045982714,4.9914,2412.8,2412.7,32.588]
[1751045982914,4.9914,2412.8,2412.7,33.41666]
[1751045983317,4.9914,2412.8,2412.7,32.588]
[1751045983517,4.9914,2412.8,2412.7,33.41666]
[1751045983910,4.9914,2412.8,2412.7,36.62446]
[1751045984111,4.576,2413.3,2413.1,0.82851]
[1751045984416,4.576,2413.3,2413.2,32.607]
[1751045984718,5.86395615,2413.3,2413.2,33.43549]
[1751045984916,10.85535615,2413.3,2413.2,33.43549]
[1751045985814,10.87571593,2413.3,2413.2,33.43549]
[1751045986616,10.17991593,2413.3,2413.2,33.43549]
[1751045987019,10.19358107,2413.3,2413.2,33.43549]
[1751045987222,6.98578107,2413.3,2413.2,33.43549]
[1751045988022,7.00259684,2413.3,2413.2,33.43549]
[1751045988815,6.33019684,2413.3,2413.2,33.43549]
[1751045989125,1.34497853,2413.3,2413.2,33.43549]
[1751045990118,1.34497853,2413.3,2413.2,40.80443972]
[1751045990327,0.05702238,2413.3,2413.2,40.80443972]
[1751045991228,0.05702238,2413.3,2413.2,8.19743972]
[1751045991533,0.05702238,2413.3,2413.2,33.40149]
[1751045994120,0.05702238,2413.3,2413.2,38.40149]
[1751045994725,0.7227,2414.1,2414.0,0.81027033]
[1751045995023,2.01049938,2414.1,2414.0,33.42827033]
[1751045995422,7.00189938,2414.1,2414.0,33.42827033]
[1751045995727,6.29714668,2414.1,2414.0,33.42827033]
[1751045996222,6.31509399,2414.1,2414.0,33.42827033]
[1751045996830,6.31827447,2414.1,2414.0,33.42827033]
[1751045997630,5.03047509,2414.1,2414.0,33.42827033]
[1751045999729,0.82822,2414.0,2413.9,0.82824]
[1751045999934,2.18532,2414.0,2413.9,33.41424]
[1751046000328,2.18532,2414.0,2413.5,4.5871]
[1751046000329,6.3571,2414.0,2413.5,3.2078]
[1751046000522,0.82832,2413.7,2413.6,6.82]
[1751046000736,5.81971,2413.8,2413.6,33.42733]
[1751046000934,2.94039509,2413.7,2413.6,32.599]
[1751046001132,2.32879509,2413.7,2413.6,32.599]
[1751046001633,2.83907509,2413.7,2413.6,33.42735]
[1751046002428,3.66739509,2413.7,2413.6,32.599]
[1751046002633,3.68531459,2413.7,2413.6,32.599]
[1751046002829,2.85699459,2413.7,2413.6,33.42735]
[1751046003334,2.34671459,2413.7,2413.6,6.819]
[1751046003532,0.82839,2413.5,2413.4,47.729]
[1751046003837,0.82839,2413.5,2413.4,80.349]
[1751046004036,0.82839,2413.5,2413.4,47.729]
[1751046004232,0.82839,2413.5,2413.4,80.349]
[1751046004439,2.22689,2413.5,2413.4,80.347]
[1751046004639,2.31972359,2413.5,2413.4,80.347]
[1751046004834,0.82844,2413.4,2413.2,4.03626]
[1751046005029,11.97524972,2413.3,2412.5,3.2078]
[1751046005232,0.82873,2412.5,2412.4,6.819]
[1751046005435,3.2078,2412.8,2412.4,25.826]
[1751046005634,0.82873,2412.5,2412.4,25.826]
[1751046006027,1.3985,2412.5,2412.4,25.826]
[1751046006232,0.09283359,2412.6,2412.5,0.82873]
[1751046006533,0.09283359,2412.6,2412.5,4.03653]
[1751046007437,0.17843359,2412.6,2412.5,4.03653]
[1751046007739,0.09283359,2412.6,2412.5,4.03653]
[1751046008138,0.09283359,2412.6,2412.5,11.40547972]
[1751046008639,0.09283359,2412.6,2412.5,12.75557972]
[1751046008938,0.09283359,2412.6,2412.3,0.82878]
[1751046009145,0.09283359,2412.6,2412.2,3.2078]
[1751046009336,0.8288,2412.3,2412.2,3.2078]
[1751046009537,0.8288,2412.3,2412.2,35.8718]
[1751046009740,0.92163359,2412.3,2412.2,10.0498]
[1751046009945,0.92163359,2412.3,2412.2,6.842]
[1751046010243,8.68643359,2412.3,2412.2,32.673]
[1751046010738,0.82893,2411.9,2411.8,47.722]
[1751046011241,7.36894972,2412.0,2411.4,40.8]
[1751046011447,1.4062,2411.9,2411.5,36.70986]
[1751046011639,0.829,2411.7,2411.5,36.70986]
[1751046011840,0.94795259,2411.6,2411.5,35.8808]
[1751046012744,0.11891259,2411.6,2411.5,35.8808]
[1751046012945,0.96524116,2411.6,2411.5,35.8808]
[1751046013347,0.13620116,2411.6,2411.5,35.8808]
[1751046013649,0.96524116,2411.6,2411.5,35.8808]
[1751046013848,0.14985597,2411.6,2411.5,35.8808]
[1751046014144,0.14985597,2411.6,2411.5,36.70987]
[1751046018642,0.14985597,2411.6,2411.5,41.70987]
[1751046019444,0.14985597,2411.6,2411.5,82.50987]
[1751046020243,0.6694,2412.0,2411.9,0.6622235]
[1751046020437,0.6694,2412.0,2411.9,43.91297322]
[1751046020638,0.82878,2412.4,2412.2,0.82883]
[1751046020842,5.82018,2412.4,2412.3,32.669]
[1751046021049,0.82882,2412.3,2412.1,0.82885]
[1751046021250,2.24382,2412.3,2412.2,32.65014945]
[1751046021448,2.24382,2412.3,2412.2,32.64814945]
[1751046021642,2.26067056,2412.3,2412.2,32.64814945]
[1751046021949,1.43185056,2412.3,2412.2,32.64814945]
[1751046022249,1.43185056,2412.3,2412.2,33.47697945]
[1751046022250,0.01685056,2412.3,2412.2,33.47697945]
[1751046022551,0.0233213,2412.3,2412.2,32.64814945]
[1751046022748,0.0233213,2412.3,2412.2,33.47697945]
[1751046022949,0.0233213,2412.3,2412.2,40.84592917]
[1751046023141,0.0233213,2412.3,2412.2,44.05372917]
[1751046024237,0.0233213,2412.3,2412.2,11.40557972]
[1751046024442,0.0233213,2412.3,2412.2,44.05357972]
[1751046025751,0.0233213,2412.3,2412.2,3.2078]
[1751046025752,0.8521213,2412.3,2412.2,3.2078]
[1751046026049,0.0233213,2412.3,2412.2,36.67063]
[1751046026250,5.0147213,2412.3,2412.2,4.03663]
[1751046026452,5.0147213,2412.3,2412.2,36.67063]
[1751046027051,0.0233213,2412.3,2412.2,36.67063]
[1751046028648,4.9914,2412.4,2412.3,0.78753983]
[1751046029653,5.00933887,2412.4,2412.3,0.78753983]
[1751046030354,5.83809887,2412.4,2412.2,36.67061]
[1751046030551,0.86467776,2412.3,2412.0,47.746]
[1751046030850,2.23727776,2412.3,2412.1,33.44485]
[1751046031053,7.22867776,2412.3,2412.1,33.44485]
[1751046031350,7.22867776,2412.3,2412.0,47.746]
[1751046031351,0.82886,2412.1,2412.0,47.746]
[1751046031547,0.82886,2412.1,2412.0,54.59]
[1751046031748,0.86794351,2412.1,2412.0,54.59]
[1751046032053,0.86794351,2412.1,2412.0,80.374]
[1751046032251,2.93714351,2412.1,2412.0,80.374]
[1751046032748,2.10828351,2412.1,2412.0,47.746]
[1751046032954,2.10828351,2412.1,2412.0,80.371]
[1751046033154,2.93714351,2412.1,2412.0,80.371]
[1751046033655,0.73568351,2412.1,2412.0,81.1999]
[1751046033854,0.73568351,2412.1,2412.0,80.371]
[1751046034359,0.73568351,2412.1,2412.0,81.1999]
[1751046035155,5.72708351,2412.1,2412.0,81.1999]
[1751046036256,5.72708351,2412.1,2412.0,80.371]
[1751046036655,5.72708351,2412.1,2412.0,81.1999]
[1751046037956,5.74506084,2412.1,2412.0,81.1999]
[1751046038957,6.59189817,2412.1,2412.0,80.371]
[1751046039160,5.76303817,2412.1,2412.0,81.1999]
[1751046039552,6.59189817,2412.1,2412.0,47.746]
[1751046039754,6.59189817,2412.1,2411.4,2.07271]
[1751046039755,0.829,2411.7,2411.6,3.2078]
[1751046040055,0.92201552,2411.7,2411.6,35.7478]
[1751046040261,0.92201552,2411.7,2411.6,35.7548]
[1751046040560,0.92510589,2411.7,2411.6,35.7548]
[1751046041255,0.09610589,2411.7,2411.6,36.58384]
[1751046041455,1.54650589,2411.7,2411.6,36.58384]
[1751046042163,0.09610589,2411.7,2411.6,36.58384]
[1751046044062,1.48000589,2411.7,2411.6,36.58384]
[1751046044961,1.48000589,2411.7,2411.6,35.7398]
[1751046045152,2.30900589,2411.7,2411.6,3.2078]
[1751046045354,0.82906,2411.6,2411.4,0.82909]
[1751046045662,1.48000589,2411.5,2411.4,0.82909]
[1751046045964,1.48000589,2411.5,2411.4,33.34309]
[1751046046767,1.49792866,2411.5,2411.4,33.34309]
[1751046046972,0.11402866,2411.5,2411.4,33.34309]
[1751046047568,0.11402866,2411.5,2411.4,34.74099]
[1751046047867,4.87737134,2411.7,2411.6,0.69708857]
[1751046048060,0.7357,2412.4,2412.3,0.8288]
[1751046048367,0.75362277,2412.4,2412.3,43.91854972]
[1751046048570,0.75687684,2412.4,2412.3,43.91854972]
[1751046049269,0.75687684,2412.4,2412.3,4.0366]
[1751046049463,0.75687684,2412.4,2412.3,36.5576]
[1751046049664,0.75687684,2412.4,2412.3,32.521]
[1751046049869,0.75687684,2412.4,2412.3,33.3458]
[1751046050971,0.75687684,2412.4,2412.3,36.5536]
[1751046051166,0.02117684,2412.4,2412.3,36.5536]
[1751046051574,0.02117684,2412.4,2412.3,37.9703]
[1751046051871,0.02117684,2412.4,2412.3,42.9703]
[1751046053372,0.02117684,2412.4,2412.3,37.9703]
[1751046053664,0.02117684,2412.4,2412.3,37.9643]
[1751046053865,0.02117684,2412.4,2412.3,5.4533]
[1751046054059,0.02117684,2412.4,2412.3,37.9573]
[1751046054462,4.99,2412.8,2412.6,0.78947129]
[1751046054664,6.4497,2412.8,2412.7,33.32966]
[1751046055672,6.46771188,2412.8,2412.7,33.32966]
[1751046056074,5.00801188,2412.8,2412.7,33.32966]
[1751046056470,5.02602377,2412.8,2412.7,33.32966]
[1751046057073,5.02901051,2412.8,2412.7,33.32966]
[1751046060374,0.03901051,2412.8,2412.7,40.69860972]
[1751046060576,0.03901051,2412.8,2412.7,33.32366]
[1751046060782,0.03901051,2412.8,2412.7,33.32266]
[1751046061178,1.50171051,2412.8,2412.7,33.32266]
[1751046061677,5.19321051,2412.8,2412.7,33.32266]
[1751046062077,5.19321051,2412.8,2412.7,0.82866]
[1751046062266,5.19321051,2412.8,2412.7,33.32266]
[1751046062881,5.21116678,2412.8,2412.7,33.32266]
[1751046063376,0.05696678,2412.8,2412.7,38.32266]
[1751046063682,0.05696678,2412.8,2412.7,39.79396]
[1751046063875,4.99,2413.1,2413.0,0.75363695]
[1751046064081,4.99,2413.1,2413.0,29.66143695]
[1751046064567,5.81852,2413.1,2412.7,3.2078]
[1751046064772,1.4719,2413.0,2412.9,0.82859]
[1751046065073,1.4719,2413.0,2412.9,26.51545928]
[1751046065275,2.30046,2413.0,2412.9,25.7]
[1751046065469,1.4719,2413.0,2412.9,25.7]
[1751046065671,8.54331,2413.0,2412.4,3.2078]
[1751046065872,0.7038,2412.9,2412.5,6.793]
[1751046066073,0.82869,2412.7,2412.5,32.492]
[1751046066282,2.30059,2412.6,2412.5,32.492]
[1751046066582,1.4719,2412.6,2412.5,32.492]
[1751046066982,2.30059,2412.6,2412.5,32.492]
[1751046068678,1.4719,2412.6,2412.5,32.492]
[1751046068885,2.30059,2412.6,2412.5,32.492]
[1751046069782,1.4719,2412.6,2412.5,33.32073]
[1751046069987,1.4719,2412.6,2412.5,32.492]
[1751046070484,1.4719,2412.6,2412.5,32.47]
[1751046070789,2.30059,2412.6,2412.5,32.47]
[1751046071179,2.3265287,2412.6,2412.5,32.47]
[1751046071477,1.4978387,2412.6,2412.5,32.47]
[1751046071677,1.4978387,2412.6,2412.5,33.29873]
[1751046071882,1.4978387,2412.6,2412.5,32.47]
[1751046072186,2.34450828,2412.6,2412.5,32.469]
[1751046072388,1.51579828,2412.6,2412.5,32.469]
[1751046072587,1.51579828,2412.6,2412.5,33.29773]
[1751046073186,0.06185786,2412.6,2412.5,40.66667972]
[1751046074481,0.06185786,2412.6,2412.5,33.29773]
[1751046075084,0.06185786,2412.6,2412.5,32.469]
[1751046075280,1.53215786,2412.6,2412.5,32.469]
[1751046075485,1.53215786,2412.6,2412.5,33.29773]
[1751046075796,2.36084786,2412.6,2412.5,32.469]
[1751046076990,1.53215786,2412.6,2412.5,32.469]
[1751046077290,2.36084786,2412.6,2412.5,6.771]
[1751046077589,2.36084786,2412.6,2412.5,32.468]
[1751046077793,0.8288,2412.3,2412.2,47.753]
[1751046077991,0.8288,2412.3,2412.2,80.221]
[1751046078294,0.89065786,2412.3,2412.2,80.221]
[1751046078989,0.90861408,2412.3,2412.2,80.221]
[1751046079184,1.58361408,2412.3,2412.2,80.221]
[1751046079490,0.75481408,2412.3,2412.2,81.04983]
[1751046079992,0.7727703,2412.3,2412.2,81.04983]
[1751046081090,0.78592512,2412.3,2412.2,81.04983]
[1751046082091,0.79388024,2412.3,2412.2,81.04983]
[1751046083390,0.11888024,2412.3,2412.2,81.04983]
[1751046087895,0.0249,2412.5,2412.4,0.69186103]
[1751046088092,0.0249,2412.5,2412.4,26.38786103]
[1751046088396,0.0249,2412.5,2412.4,34.59566103]
[1751046088603,0.1192,2412.9,2412.5,2.07177]
[1751046088891,1.1081,2413.1,2413.0,0.82856]
[1751046089099,1.1081,2413.1,2413.0,33.29456]
[1751046089100,2.40866591,2413.1,2413.0,33.29456]
[1751046089292,1.30056591,2413.1,2413.0,33.29456]
[1751046089493,1.30056591,2413.1,2413.0,74.09456]
[1751046089899,5.7116,2413.4,2413.3,0.82845]
[1751046090092,7.00763581,2413.4,2413.3,26.52345]
[1751046090292,5.7116,2413.4,2413.3,26.52345]
[1751046090493,5.7116,2413.4,2413.3,32.465]
[1751046090693,0.82851,2413.2,2413.0,6.77]
[1751046090994,0.82851,2413.2,2413.1,25.692]
[1751046092100,5.0,2413.2,2413.1,32.462]
[1751046092396,0.82864,2412.8,2412.5,3.2078]
[1751046092601,2.25627,2412.7,2412.6,25.692]
[1751046092899,1.4276,2412.7,2412.6,25.692]
[1751046093095,2.25626,2412.7,2412.6,25.692]
[1751046093293,1.4276,2412.7,2412.5,4.0365]
[1751046093602,1.4276,2412.7,2412.6,33.29069]
[1751046094200,2.25626,2412.7,2412.6,32.462]
[1751046094404,1.4276,2412.7,2412.6,33.29069]
[1751046094898,2.25626,2412.7,2412.6,32.462]
[1751046095300,1.4276,2412.7,2412.6,33.29069]
[1751046095497,1.4276,2412.7,2412.6,32.462]
[1751046096194,2.25626,2412.7,2412.6,32.462]
[1751046098208,2.25626,2412.7,2412.6,33.29069]
[1751046099003,2.25626,2412.7,2412.6,32.462]
[1751046099390,3.55316836,2412.7,2412.6,6.771]
[1751046099596,3.55316836,2412.7,2412.6,32.462]
[1751046102306,0.82876,2412.4,2412.3,0.82877]
[1751046102603,0.82876,2412.4,2412.3,33.28377]
[1751046102998,0.82876,2412.4,2412.3,33.28477]
[1751046103195,0.82876,2412.4,2412.3,32.456]
[1751046104608,0.82874,2412.5,2412.3,32.456]
[1751046104904,0.82873,2412.5,2412.4,0.82874]
[1751046105105,0.82873,2412.5,2412.3,33.28478]
[1751046105810,0.82869,2412.6,2412.4,0.82876]
[1751046106002,1.4276,2412.7,2412.5,36.26574972]
[1751046106210,1.4276,2412.7,2412.6,0.82869]
[1751046106607,5.63773085,2413.3,2412.6,0.82869]
[1751046106811,1.4161,2413.2,2413.0,7.36894972]
[1751046107013,6.28712851,2413.1,2412.8,3.2078]
[1751046107202,1.29712851,2413.0,2412.8,3.2078]
[1751046107409,3.56779851,2413.0,2412.8,3.2078]
[1751046107712,1.4421,2413.0,2412.5,7.36894972]
[1751046107907,0.82868,2412.7,2412.6,6.766]
[1751046108116,0.82868,2412.7,2412.6,32.454]
[1751046108412,0.82865,2412.8,2412.6,32.454]
[1751046108613,0.6852,2412.7,2412.6,32.454]
[1751046108815,1.51386,2412.7,2412.6,32.454]
[1751046109113,0.6852,2412.7,2412.6,32.454]
[1751046109411,1.51386,2412.7,2412.6,32.451]
[1751046109613,3.62866,2412.7,2412.6,6.765]
[1751046109809,8.61866,2412.7,2412.6,32.451]
[1751046110212,7.79,2412.7,2412.6,33.27969]
[1751046112315,8.61866,2412.7,2412.6,32.451]
[1751046112921,7.79,2412.7,2412.6,33.27969]
[1751046113108,7.79,2412.7,2412.6,32.451]
[1751046113321,7.79,2412.7,2412.6,33.27969]
[1751046114625,8.61866,2412.7,2412.6,32.451]
[1751046116020,0.8287,2412.6,2412.4,4.03653]
[1751046116224,2.1907,2412.6,2412.5,32.45]
[1751046117428,0.82873,2412.5,2412.4,3.2078]
[1751046117721,2.19073,2412.5,2412.4,9.9738]
[1751046118030,2.19073,2412.5,2412.4,35.6578]
[1751046118717,2.19073,2412.5,2412.4,36.48656]
[1751046118917,1.362,2412.5,2412.4,36.48656]
[1751046119719,2.19073,2412.5,2412.4,36.48656]
[1751046120325,1.362,2412.5,2412.4,36.48656]
[1751046120524,2.19073,2412.5,2412.4,36.48656]
[1751046120831,0.8288,2412.3,2412.2,54.519]
[1751046121126,0.8288,2412.3,2412.2,32.449]
[1751046121423,0.82886,2412.1,2412.0,0.82888]
[1751046121618,0.82886,2412.1,2412.0,33.27788]
[1751046121922,2.1644,2412.2,2412.1,0.82886]
[1751046122113,0.7062,2412.2,2412.1,0.82886]
[1751046123023,2.0722,2412.1,2411.5,48.57106]
[1751046123220,0.82904,2411.7,2411.6,32.448]
[1751046124725,1.4387,2411.9,2411.6,32.448]
[1751046124933,0.82895,2411.9,2411.8,0.82896]
[1751046125221,0.82893,2411.9,2411.8,26.51195]
[1751046125417,0.86013,2411.9,2411.8,26.51195]
[1751046125615,0.82893,2411.9,2411.8,25.683]
[1751046125825,0.86013,2411.9,2411.8,25.683]
[1751046126425,0.86013,2411.9,2411.8,26.51197]
[1751046126627,0.86013,2411.9,2411.8,25.683]
[1751046127223,0.0312,2411.9,2411.8,26.51197]
[1751046127619,0.0744,2412.0,2411.9,0.82893]
[1751046127826,0.0744,2412.0,2411.9,7.59593]
[1751046128428,0.9033,2412.0,2411.9,7.59593]
[1751046128930,0.9033,2412.0,2411.8,0.82894]
[1751046129128,0.82897,2411.8,2411.7,0.829]
[1751046129331,0.82897,2411.8,2411.7,6.767]
[1751046129534,0.82897,2411.8,2411.7,32.45]
[1751046129831,0.82904,2411.6,2411.5,47.742]